Workbook

Sheet паспорт
A1: ПАТ "УКРТРАНСГАЗ" | G1: ПАСПОРТ ФІЗИКО-ХІМІЧНИХ ПОКАЗНИКІВ ПРИРОДНОГО ГАЗУ №104
A2: Філія "УМГ "Київтрансгаз" | G2: переданогоДиканським ЛВУМГ та прийнятого ПАТ "Полтавагаз"
A3: Диканський п/м Диканське ЛВУМГ | G3: Маршрут №104
A4: Вимірювальна хіміко-аналітична лабораторія
A5: Свідоцтво № 186-13 чинне до 05.12.2018 р. | K5: по газопроводу "ШЕБЕЛІНКА - ПОЛТАВА - КИЇВ" | V5: за період з | X5: 2017-05-01 | Z5: по | AA5: 31.05.2017р.
A7: Число місяця | B7: Компонентний склад, % мол. | N7: Фізико-хімічні показники газу обчислені на основі компонентного складу, 101,325 кПа | X7: Температура точки роси за вологою (Р = 3.92 МПа), °С | Y7: Температура точки роси за вуглеводнями, °С | Z7: Вміст сірководню, г/м3 | AA7: Вміст меркаптанової сірки, г/м3 | AB7: Вміст механічних домішок, г/м3
N8: Густина абсолютна, кг/м3,при 20 ºС, | O8: Температура вимірювання/згоряння при 20/25°С
B9: метан, С1 | C9: етан, С2 | D9: пропан, С3 | E9: ізо-бутан, і-С4 | F9: н-бутан, н-С4 | G9: нео-пентан, нео-С5 | H9: ізо-пентан, і-С5 | I9: н-пентан, н-С5 | J9: гексани та вищі, С6+ | K9: кисень, О2 | L9: азот, N2 | M9: діоксид вуглецю, CО2 | O9: Теплота згоряння нижча | R9: Теплота згоряння вища | U9: Число Воббе вище
O10: ккал/м3 | P10: МДж/м3 | Q10: кВт⋅год/м3 | R10: ккал/м3 | S10: МДж/м3 | T10: кВт⋅год/м3 | U10: ккал/м3 | V10: МДж/м3 | W10: кВт⋅год/м3
A11: 1 | O11: 8175.041796 | P11: 34.2289 | Q11: =P11/3.6 -> 9.508027778 | R11: 9055 | S11: 37.9097 | T11: =S11/3.6 -> 10.53047222 | AC11: =SUM(B11:M11)+$K$42+$N$42 -> 0
A12: 2 | O12: 8175.041796 | P12: 34.2289 | Q12: =P12/3.6 -> 9.508027778 | R12: 9055 | S12: 37.9097 | T12: =S12/3.6 -> 10.53047222 | AC12: 0
A13: 3 | O13: 8175.041796 | P13: 34.2289 | Q13: 9.508027778 | R13: 9055 | S13: 37.9097 | T13: 10.53047222 | AC13: 0 | AD13: =IF(AC13=100,"ОК"," ") -> 
A14: 4 | B14: 88.7435 | C14: 5.2715 | D14: 1.212 | E14: 0.079 | F14: 0.1465 | G14: 0.0012 | H14: 0.0428 | I14: 0.0415 | J14: 0.0881 | K14: 0.0221 | L14: 2.2748 | M14: 2.0769 | N14: 0.7576 | O14: 8206.052471 | P14: 34.3571 | Q14: 9.543638889 | R14: 9087.967072 | S14: 38.0495 | T14: 10.56930556 | U14: 11457.96513 | V14: 47.9745 | W14: 13.32561233 | X14: -8.8 | Y14: -10.2 | AC14: 99.9999 | AD14: =IF(AC14=100,"ОК"," ") -> 
A15: 5 | O15: 8206.052471 | P15: 34.3571 | Q15: 9.543638889 | R15: 9087.967072 | S15: 38.0495 | T15: 10.56930556 | AC15: 0
A16: 6 | O16: 8206.052471 | P16: 34.3571 | Q16: 9.543638889 | R16: 9087.967072 | S16: 38.0495 | T16: 10.56930556 | AC16: 0
A17: 7 | O17: 8206.052471 | P17: 34.3571 | Q17: 9.543638889 | R17: 9087.967072 | S17: 38.0495 | T17: 10.56930556 | AC17: 0
A18: 8 | O18: 8206.052471 | P18: 34.3571 | Q18: 9.543638889 | R18: 9087.967072 | S18: 38.0495 | T18: 10.56930556 | AC18: 0
A19: 9 | O19: 8206.052471 | P19: 34.3571 | Q19: 9.543638889 | R19: 9087.967072 | S19: 38.0495 | T19: 10.56930556 | AC19: 0
A20: 10 | O20: 8206.052471 | P20: 34.3571 | Q20: 9.543638889 | R20: 9087.967072 | S20: 38.0495 | T20: 10.56930556 | AC20: 0
A21: 11 | O21: 8206.052471 | P21: 34.3571 | Q21: 9.543638889 | R21: 9087.967072 | S21: 38.0495 | T21: 10.56930556 | AC21: 0
A22: 12 | B22: 88.8003 | C22: 5.2503 | D22: 1.1653 | E22: 0.0774 | F22: 0.1348 | G22: 0.0011 | H22: 0.0388 | I22: 0.0348 | J22: 0.0627 | K22: 0.025 | L22: 2.3675 | M22: 2.0419 | N22: 0.7558 | O22: 8181.06919 | P22: 34.2525 | Q22: 9.514583333 | R22: 9061.025255 | S22: 37.9367 | T22: 10.53797222 | U22: 11437.87915 | V22: 47.8904 | W22: 13.30225234 | X22: -7.6 | Y22: -11 | AC22: 99.9999
A23: 13 | O23: 8181.06919 | P23: 34.2525 | Q23: 9.514583333 | R23: 9061.025255 | S23: 37.9367 | T23: 10.53797222 | AC23: 0
A24: 14 | O24: 8181.06919 | P24: 34.2525 | Q24: 9.514583333 | R24: 9061.025255 | S24: 37.9367 | T24: 10.53797222 | AC24: 0
A25: 15 | O25: 8181.06919 | P25: 34.2525 | Q25: 9.514583333 | R25: 9061.025255 | S25: 37.9367 | T25: 10.53797222 | Z25: <0,006 | AA25: <0,02 | AB25: від. | AC25: 0
A26: 16 | O26: 8181.06919 | P26: 34.2525 | Q26: 9.514583333 | R26: 9061.025255 | S26: 37.9367 | T26: 10.53797222 | AC26: 0
A27: 17 | O27: 8181.06919 | P27: 34.2525 | Q27: 9.514583333 | R27: 9061.025255 | S27: 37.9367 | T27: 10.53797222 | AC27: 0
A28: 18 | B28: 88.7271 | C28: 5.37 | D28: 1.1256 | E28: 0.0864 | F28: 0.1637 | G28: 0.0014 | H28: 0.047 | I28: 0.0426 | J28: 0.0634 | K28: 0.0254 | L28: 2.2342 | M28: 2.1132 | N28: 0.7573 | O28: 8199.866362 | P28: 34.3312 | Q28: 9.536444444 | R28: 9081.351041 | S28: 38.0218 | T28: 10.56161111 | U28: 11452.32864 | V28: 47.9509 | W28: 13.31905709 | X28: -8 | Y28: -9.4 | AC28: 100 | AD28: ОК
A29: 19 | O29: 8199.866362 | P29: 34.3312 | Q29: 9.536444444 | R29: 9081.351041 | S29: 38.0218 | T29: 10.56161111 | AC29: 0
A30: 20 | O30: 8199.866362 | P30: 34.3312 | Q30: 9.536444444 | R30: 9081.351041 | S30: 38.0218 | T30: 10.56161111 | AC30: 0 | AD30: =IF(AC30=100,"ОК"," ") -> 
A31: 21 | O31: 8199.866362 | P31: 34.3312 | Q31: 9.536444444 | R31: 9081.351041 | S31: 38.0218 | T31: 10.56161111 | AC31: 0
A32: 22 | O32: 8199.866362 | P32: 34.3312 | Q32: 9.536444444 | R32: 9081.351041 | S32: 38.0218 | T32: 10.56161111 | AC32: 0
A33: 23 | O33: 8199.866362 | P33: 34.3312 | Q33: 9.536444444 | R33: 9081.351041 | S33: 38.0218 | T33: 10.56161111 | AC33: 0 | AD33: =IF(AC33=100,"ОК"," ") -> 
A34: 24 | O34: 8199.866362 | P34: 34.3312 | Q34: 9.536444444 | R34: 9081.351041 | S34: 38.0218 | T34: 10.56161111 | AC34: 0
A35: 25 | O35: 8199.866362 | P35: 34.3312 | Q35: 9.536444444 | R35: 9081.351041 | S35: 38.0218 | T35: 10.56161111 | AC35: 0
A36: 26 | O36: 8199.866362 | P36: 34.3312 | Q36: 9.536444444 | R36: 9081.351041 | S36: 38.0218 | T36: 10.56161111 | AC36: 0
A37: 27 | O37: 8199.866362 | P37: 34.3312 | Q37: 9.536444444 | R37: 9081.351041 | S37: 38.0218 | T37: 10.56161111 | AC37: 0
A38: 28 | O38: 8199.866362 | P38: 34.3312 | Q38: 9.536444444 | R38: 9081.351041 | S38: 38.0218 | T38: 10.56161111
A39: 29 | O39: 8199.866362 | P39: 34.3312 | Q39: 9.536444444 | R39: 9081.351041 | S39: 38.0218 | T39: 10.56161111
A40: 30 | O40: 8199.866362 | P40: 34.3312 | Q40: 9.536444444 | R40: 9081.351041 | S40: 38.0218 | T40: 10.56161111
A41: 31 | O41: 8199.866362 | P41: 34.3312 | Q41: 9.536444444 | R41: 9081.351041 | S41: 38.0218 | T41: 10.56161111
A42: Рівень одоризації відповідає чинним нормативним документам | O42: =SUMPRODUCT(O11:O41,' розрахунок'!D7:D37)/' розрахунок'!D38 -> 8194.588662 | P42: =SUMPRODUCT(P11:P41,' розрахунок'!D7:D37)/' розрахунок'!D38 -> 34.30920828 | Q42: =SUMPRODUCT(Q11:Q41,' розрахунок'!D7:D37)/' розрахунок'!D38 -> 9.530335632 | R42: =SUMPRODUCT(R11:R41,' розрахунок'!D7:D37)/' розрахунок'!D38 -> 9075.658504 | S42: =SUMPRODUCT(S11:S41,' розрахунок'!D7:D37)/' розрахунок'!D38 -> 37.99785268 | T42: =SUMPRODUCT(T11:T41,' розрахунок'!D7:D37)/' розрахунок'!D38 -> 10.55495908
H43: Середньозважене значення теплоти згоряння:
B46: Заступник начальника Диканського ЛВУМГ 31.05.2017р. | L46: Герасименко І.М. | Z46: =TODAY() -> 2017-06-01
B48: Завідувач лабораторії Диканського ЛВУМГ | L48: Горшковоз О.В. | Z48: =TODAY() -> 2017-06-01
B50: Начальник служби ГВМ та М Диканського ЛВУМГ | L50: Левадний С.А. | Z50: =TODAY() -> 2017-06-01

Sheet розрахунок
A2: Додаток до Паспорту фізико-хімічних показників природного газу по маршруту №104
A4: Число місяця | B4: Теплота згоряння вища, МДж/м3 | C4: Полтавська область | D4: Загальний обсяг газу, м3
C5: Обсяг газу переданого за добу, м3
C6: ГРС Диканька
A7: 1 | B7: =паспорт!S11 -> 37.9097 | C7: 3840.31 | D7: =SUM(C7:C7) -> 3840.31
A8: 2 | B8: =паспорт!S12 -> 37.9097 | C8: 4396.43 | D8: 4396.43
A9: 3 | B9: =паспорт!S13 -> 37.9097 | C9: 4927.12 | D9: 4927.12
A10: 4 | B10: =паспорт!S14 -> 38.0495 | C10: 5628.36 | D10: 5628.36
A11: 5 | B11: =паспорт!S15 -> 38.0495 | C11: 5184 | D11: 5184
A12: 6 | B12: =паспорт!S16 -> 38.0495 | C12: 5324.02 | D12: 5324.02
A13: 7 | B13: =паспорт!S17 -> 38.0495 | C13: 4297.91 | D13: 4297.91
A14: 8 | B14: =паспорт!S18 -> 38.0495 | C14: 5285.2 | D14: 5285.2
A15: 9 | B15: =паспорт!S19 -> 38.0495 | C15: 4816.03 | D15: 4816.03
A16: 10 | B16: =паспорт!S20 -> 38.0495 | C16: 8548.28 | D16: 8548.28
A17: 11 | B17: =паспорт!S21 -> 38.0495 | C17: 9260.55 | D17: 9260.55
A18: 12 | B18: =паспорт!S22 -> 37.9367 | C18: 11865.4 | D18: 11865.4
A19: 13 | B19: =паспорт!S23 -> 37.9367 | C19: 12983.81 | D19: 12983.81
A20: 14 | B20: =паспорт!S24 -> 37.9367 | C20: 10593.9 | D20: 10593.9
A21: 15 | B21: =паспорт!S25 -> 37.9367 | C21: 7761.62 | D21: 7761.62
A22: 16 | B22: =паспорт!S26 -> 37.9367 | C22: 6003.32 | D22: 6003.32
A23: 17 | B23: =паспорт!S27 -> 37.9367 | C23: 6913.72 | D23: 6913.72
A24: 18 | B24: =паспорт!S28 -> 38.0218 | C24: 8698.52 | D24: 8698.52
A25: 19 | B25: =паспорт!S29 -> 38.0218 | C25: 10725.4 | D25: 10725.4
A26: 20 | B26: =паспорт!S30 -> 38.0218 | C26: 9383.28 | D26: 9383.28
A27: 21 | B27: =паспорт!S31 -> 38.0218 | C27: 7331.33 | D27: 7331.33
A28: 22 | B28: =паспорт!S32 -> 38.0218 | C28: 6641.77 | D28: 6641.77
A29: 23 | B29: =паспорт!S33 -> 38.0218 | C29: 5905.41 | D29: 5905.41
A30: 24 | B30: =паспорт!S34 -> 38.0218 | C30: 5224.7 | D30: 5224.7
A31: 25 | B31: =паспорт!S35 -> 38.0218 | C31: 4423.58 | D31: 4423.58
A32: 26 | B32: =паспорт!S36 -> 38.0218 | C32: 5092.68 | D32: 5092.68
A33: 27 | B33: =паспорт!S37 -> 38.0218 | C33: 4983.68 | D33: 4983.68
A34: 28 | B34: =паспорт!S38 -> 38.0218 | C34: 4489.62 | D34: 4489.62
A35: 29 | B35: =паспорт!S39 -> 38.0218 | C35: 4983.61 | D35: 4983.61
A36: 30 | B36: =паспорт!S40 -> 38.0218 | C36: 4703.88 | D36: 4703.88
A37: 31 | B37: =паспорт!S41 -> 38.0218 | C37: 4920.07 | D37: 4920.07
A38: Загальний обсяг газу, м3 | C38: =SUM(C7:C37) -> 205137.51 | D38: =SUM(D7:D37) -> 205137.51
A39: Енергія, МДж | C39: =SUMPRODUCT(B7:B37,C7:C37) -> 7794784.885 | D39: =SUMPRODUCT(B7:B37,D7:D37) -> 7794784.885
A40: Теплота згоряння (середньозважене значення за місяць), МДж/м³ | C40: =C39/C38 -> 37.99785268 | D40: 37.99785268
A41: Теплота згоряння (середньозважене значення за місяць), ккал/м³ | C41: =C40*238.8459 -> 9075.631322 | D41: 9075.631322
A42: Теплота згоряння (середньозважене значення за місяць), кВт*год./м³ | C42: =C40/3.6 -> 10.55495908 | D42: 10.55495908

Sheet додаток
A2: Додаток до Паспорту фізико-хімічних показників природного газу № | E2: 104
A4: Область | B4: ГРС, прямий споживач | C4: Cередньозважене значення вищої теплоти згоряння
C5: МДж/м³ | D5: ккал/м³ | E5: кВт*год./м³
A6: Полтавська область | B6: ГРС Диканька | C6: =' розрахунок'!C40 -> 37.99785268 | D6: =' розрахунок'!C41 -> 9075.631322 | E6: =' розрахунок'!C42 -> 10.55495908
A7: Середньозважене значення вищої теплоти згоряння по маршруту №104 | C7: =' розрахунок'!D40 -> 37.99785268 | D7: =' розрахунок'!D41 -> 9075.631322 | E7: =' розрахунок'!D42 -> 10.55495908
A11: Заступник начальника Диканського ЛВУМГ | C11: Герасименко І.М. | E11: =TODAY() -> 2017-06-01
A13: Завідувач вимірювальної хіміко-аналітичної лабораторії лабораторії | C13: Горшковоз О.В. | E13: =TODAY() -> 2017-06-01
A15: Начальник службиГВ та М | C15: Левадний С.А. | E15: =TODAY() -> 2017-06-01

Sheet variablesList (hidden)
A1: 3 | B1: x:\gaysin | C1: 10, 11, 24, 25, 127, 128, 132, 180, 207, 215 | D1: x:\
B2: x:\Illinci
B3: x:\Talne
